[Event "Teplice Open 2022"]
[Site "Teplice"]
[Date "2022.06.21"]
[Round "4.11"]
[White "Moksh Amit Doshi"]
[Black "Sanal, Vahap"]
[Result "1/2-1/2"]
[ECO "E63"]
[WhiteElo "2398"]
[BlackElo "2575"]
[Annotator "TA"]
[PlyCount "170"]
[EventDate "2022.06.18"]
[EventType "swiss"]
[EventCountry "CZE"]
[SourceTitle "playchess.com"]
[Source "ChessBase"]
[SourceQuality "1"]
[TimeControl "40/5400+30:1800+30"]

{[%evp 20,170,37,33,59,41,41,36,45,50,40,29,84,130,149,169,156,164,164,157,162,141,146,129,137,133,120,54,63,51,47,49,57,58,81,74,94,90,95,103,83,80,90,76,76,73,77,72,77,77,66,66,65,65,80,35,40,25,28,7,8,5,7,0,4,0,6,4,11,0,0,0,0,0,0,0,0,0,0,0,0,0,0,0,0,0,0,0,0,0,8,8,8,0,0,0,0,0,0,0,0,0,0,-18,0,0,0,-14,0,0,0,0,0,0,0,0,0,0,0,0,0,0,0,0,0,0,0,0,0,0,0,0,0,0,0,0,0,0,0,0,0,0,0,0,0,0,0,0,0,0,0,0,0]} 1. d4 {[%emt 0:00:02]} d6 {[%emt 0:09:00]} 2. Nf3 {[%emt 0:00:43]} Nf6 {[%emt 0:00:12]} 3. c4 {[%emt 0:00:08]} g6 {[%emt 0:00:05]} 4. g3 {[%emt 0:00:08]} Bg7 {[%emt 0:00:07]} 5. Bg2 {[%emt 0:00:06]} O-O {[%emt 0:00:18]} 6. Nc3 {[%emt 0:00:06]} Bf5 {[%emt 0:01:25]} 7. Nh4 {[%emt 0:01:40]} Bc8 {[%emt 0:00:08]} 8. Nf3 {[%emt 0:00:31]} Nc6 {[%emt 0:00:42]} 9. O-O {[%emt 0:00:06]} a6 {[%emt 0:00:06]} 10. b3 {[%emt 0:04:05] 10.Be3 is the recent fashion.} Rb8 {[%emt 0:01:37]} 11. d5 {[%emt 0:00:31]} Na7 {[%emt 0:02:53] E63: King's Indian: Fianchetto: Panno Variation with 7...a6.} 12. Bg5 {[%emt 0:07:53]} b5 {[%emt 0:02:14]} 13. cxb5 {[%emt 0:12:20]} axb5 {[%emt 0:02:42] White is slightly better.} 14. b4 {[%emt 0:01:44]} Bd7 {[%emt 0:01:10]} 15. Rc1 {[%emt 0:05:06] [#]} e5 $146 {[%emt 0:06:42]} (15... Nc8 $11 {keeps the balance.}) ({Predecessor:} 15... Nc8 16. e4 Nb6 17. Re1 {½-½ (15) Langrock,H (2385)-Heimrath,R (2260) Germany 2018}) 16. Ne4 $16 {[%emt 0:03:26]} Rb7 {[%emt 0:00:08]} 17. Nfd2 {[%emt 0:01:13] 0x0.00207b3c5ec5dp-1022s more active pieces.} h6 {[%emt 0:03:31]} 18. Nxf6+ {[%emt 0:02:58]} Bxf6 {[%emt 0:00:02]} 19. Bxh6 {[%emt 0:00:11]} Bg7 {[%emt 0:00:03]} 20. Bxg7 {[%emt 0:03:37]} Kxg7 {[%emt 0:00:39]} 21. Qb3 {[%emt 0:05:33]} Nc8 {[%emt 0:00:54]} 22. f4 {[%emt 0:01:59]} Ra7 {[%emt 0:03:13]} 23. Ne4 {[%emt 0:02:45] Against Qf6} (23. fxe5 $16 {aiming for e6.} dxe5 24. a3) 23... Qe7 $14 {[%emt 0:00:50]} 24. fxe5 {[%emt 0:08:22]} Qxe5 {[%emt 0:00:13]} 25. Qc3 {[%emt 0:02:13]} Qxc3 {[%emt 0:01:20]} 26. Nxc3 {[%emt 0:01:13]} Nb6 {[%emt 0:00:25]} 27. Be4 {[%emt 0:00:34]} Rb8 {[%emt 0:22:11] [#]} 28. Bd3 $1 {[%emt 0:02:29]} Nc8 {[%emt 0:01:00]} 29. Rf3 {[%emt 0:08:23]} Ne7 {[%emt 0:03:03]} 30. Rcf1 {[%emt 0:00:06]} f5 {[%emt 0:00:08]} 31. g4 {[%emt 0:01:30]} Ra3 {[%emt 0:02:00] [#]} 32. gxf5 $1 {[%emt 0:02:30]} gxf5 {[%emt 0:00:07]} 33. Rg3+ {[%emt 0:01:19]} Kf7 {[%emt 0:00:19]} 34. Bc2 {[%emt 0:03:17]} Rg8 {[%emt 0:03:26]} 35. Rff3 {[%emt 0:00:51]} Rxg3+ {[%emt 0:00:35]} 36. hxg3 {[%emt 0:01:15]} Ng6 {[%emt 0:01:28]} 37. Bb3 {[%emt 0:02:16]} Ne5 {[%emt 0:00:23]} 38. Rf1 {[%emt 0:00:07]} Ke7 {[%emt 0:05:52]} 39. Rc1 {[%emt 0:05:25]} Ra8 {[%emt 0:00:19] The position is equal.} 40. Nd1 {[%emt 0:00:38]} Rg8 {[%emt 0:00:50]} 41. Kf2 {[%emt 0:30:35]} Ng4+ {[%emt 0:30:59]} 42. Ke1 {[%emt 0:06:58]} Kd8 {[%emt 0:00:06]} 43. Rc3 {[%emt 0:00:00]} Nf6 {[%emt 0:00:00]} 44. Nf2 {[%emt 0:00:00]} Nh5 {[%emt 0:00:00]} 45. Nh1 {[%emt 0:00:00]} f4 {[%emt 0:00:00][%cal Rf4g3]} 46. Kf2 {[%emt 0:00:00]} Rf8 {[%emt 0:00:39]} 47. Ke1 {[%emt 0:00:00]} Rg8 {[%emt 0:00:15][%cal Rf4g3]} 48. Kf2 {[%emt 0:00:00]} Nf6 {[%emt 0:11:48] And now ...Ne4+ would win.} 49. Rf3 {[%emt 0:00:00]} Ne4+ {[%emt 0:00:20]} 50. Kg2 {[%emt 0:00:00]} fxg3 {[%emt 0:00:09]} 51. Nxg3 {[%emt 0:00:00]} Rg5 {[%emt 0:02:22]} 52. Kh2 {[%emt 0:00:00]} Nd2 {[%emt 0:00:13]} 53. Rd3 {[%emt 0:00:00]} Nxb3 {[%emt 0:00:06]} 54. axb3 $11 {[%emt 0:00:00][%mdl 4096] Endgame KRB-KRN} Be8 {[%emt 0:04:03]} 55. e4 {[%emt 0:00:00]} Bg6 {[%emt 0:00:11]} 56. Re3 {[%emt 0:00:00]} Rg4 {[%emt 0:00:16]} 57. Kg2 {[%emt 0:00:00]} Rf4 {[%emt 0:00:44]} 58. Kg1 {[%emt 0:00:00]} Bh7 {[%emt 0:01:06]} 59. Kg2 {[%emt 0:00:00]} Ke7 {[%emt 0:01:15]} 60. Kg1 {[%emt 0:00:00]} Bg6 {[%emt 0:02:04]} 61. Rc3 {[%emt 0:01:41]} Kd7 {[%emt 0:02:20][%mdl 1024] Black has compensation.} 62. Re3 $1 {[%emt 0:00:00]} Ke7 {[%emt 0:01:52]} 63. Rc3 {[%emt 0:00:00]} Kd8 {[%emt 0:00:39]} 64. Re3 {[%emt 0:00:00]} Kd7 {[%emt 0:00:07]} 65. Kh2 {[%emt 0:00:00]} Ke8 {[%emt 0:02:55]} 66. Kg1 {[%emt 0:00:00]} Kd8 {[%emt 0:00:05]} 67. Kh2 {[%emt 0:00:18]} Rf2+ {[%emt 0:00:47]} 68. Kh3 {[%emt 0:00:05]} Rf4 {[%emt 0:01:13]} 69. Kh2 {[%emt 0:00:10]} Kc8 {[%emt 0:00:28]} 70. Kg2 {[%emt 0:00:19]} Kb7 {[%emt 0:00:52]} 71. Kg1 {[%emt 0:00:14]} Kb6 {[%emt 0:00:22]} 72. Kg2 {[%emt 0:00:05]} Ka7 {[%emt 0:00:04]} 73. Kg1 {[%emt 0:00:05]} Kb8 {[%emt 0:00:06]} 74. Kg2 {[%emt 0:00:03]} Kc8 {[%emt 0:00:04]} 75. Kg1 {[%emt 0:00:04]} Kd8 {[%emt 0:00:03]} 76. Kh2 {[%emt 0:00:10]} Kd7 {[%emt 0:00:02]} 77. Kg1 {[%emt 0:00:33]} Ke8 {[%emt 0:00:05]} 78. Rc3 {[%emt 0:00:17]} Kd8 {[%emt 0:00:11]} 79. Re3 {[%emt 0:00:03]} Kd7 {[%emt 0:00:01]} 80. Kh2 {[%emt 0:00:23]} Rf2+ {[%emt 0:00:04]} 81. Kh3 {[%emt 0:00:04]} Rf4 {[%emt 0:00:40]} 82. Kh2 {[%emt 0:00:06]} Bh7 {[%emt 0:01:26]} 83. Kg1 {[%emt 0:00:16]} Kd8 {[%emt 0:02:58]} 84. Kh2 {[%emt 0:00:52]} Bg6 {[%emt 0:00:33]} 85. Kg1 {[%emt 0:00:10]} Ke8 {[%emt 0:00:06] Black escapes into a draw.  Weighted Error Value: White=0.06 (flawless) /Black=0.05 (flawless)} 1/2-1/2

[Event "Teplice Open 2022"]
[Site "Teplice"]
[Date "2022.06.21"]
[Round "4.12"]
[White "Postny, Evgeny"]
[Black "Sokolovsky, Yahli"]
[Result "0-1"]
[ECO "C93"]
[WhiteElo "2563"]
[BlackElo "2369"]
[Annotator "TA"]
[PlyCount "158"]
[EventDate "2022.06.18"]
[EventType "swiss"]
[EventCountry "CZE"]
[SourceTitle "playchess.com"]
[Source "ChessBase"]
[SourceQuality "1"]
[TimeControl "40/5400+30:1800+30"]

{[%evp 28,158,38,23,67,58,68,65,59,40,55,54,50,41,64,55,87,81,82,70,82,86,89,68,81,83,75,38,96,102,77,0,0,-9,38,0,36,6,32,24,28,4,37,0,0,0,0,0,67,-141,-137,-129,-127,-131,-130,-137,-144,-143,-147,-138,-150,-127,-137,-130,-105,-194,-156,-190,-194,-201,-206,-248,-247,-317,-197,-427,-424,-596,-612,-698,-650,-620,-641,-623,-631,-621,-620,-596,-561,-806,-798,-752,-741,-1171,-1115,-5454,-3127,-3352,-2849,-5197,-3916,-10021,-9197,-9197,-569,-711,-271,-2918,-5043,-1861,-1265,-726,0,-1342,-1155,-5708,-5514,-29968,-29971,-29958,-29972,-29972,-29973,-29972,-29972,-29973,-29973,-29987,-29971,-29970,-29971,-5373,-5335]} 1. e4 {[%emt 0:00:03]} e5 {[%emt 0:02:26]} 2. Nf3 {[%emt 0:00:08]} Nc6 {[%emt 0:00:06]} 3. Bb5 {[%emt 0:00:07]} a6 {[%emt 0:00:13]} 4. Ba4 {[%emt 0:00:07]} Nf6 {[%emt 0:00:06]} 5. O-O {[%emt 0:00:07]} Be7 {[%emt 0:00:19]} 6. d3 {[%emt 0:00:08]} d6 {[%emt 0:02:59]} 7. c3 {[%emt 0:00:08]} O-O {[%emt 0:00:26]} 8. Re1 {[%emt 0:00:13]} Re8 {[%emt 0:01:31]} 9. Nbd2 {[%emt 0:01:28]} Bf8 {[%emt 0:00:21]} 10. Nf1 {[%emt 0:00:51]} g6 {[%emt 0:07:04]} 11. h3 {[%emt 0:13:53]} Bg7 {[%emt 0:01:41]} 12. Ng3 {[%emt 0:02:25]} b5 {[%emt 0:00:34]} 13. Bc2 {[%emt 0:00:06]} Bb7 {[%emt 0:14:11]} 14. d4 {[%emt 0:02:00][%cal Bd3d4,Bd4d5][%mdl 32]} h6 {[%emt 0:09:05]} 15. a3 {[%emt 0:02:59][%cal Ba2a3,Ba3a4][%mdl 32]} Qe7 {[%emt 0:02:47] C93: Closed Ruy Lopez: Smyslov Variation.} 16. Be3 {[%emt 0:03:45] [#]} Rad8 $146 {[%emt 0:08:00]} ({Predecessor:} 16... Qf8 17. d5 Na5 18. b3 Bc8 19. Nd2 c5 20. b4 Nb7 21. c4 Bd7 22. Bd3 Reb8 23. Qe2 {½-½ (62) Pikula,D (2513)-Hedke,F (2352) Oldenburg 2001}) 17. d5 {[%emt 0:02:55]} Nb8 {[%emt 0:02:45] White is slightly better.} 18. b3 {[%emt 0:00:53]} c6 {[%emt 0:01:57][%cal Rc6d5]} 19. c4 {[%emt 0:00:13]} Nbd7 {[%emt 0:02:46]} 20. a4 {[%emt 0:11:22]} bxc4 {[%emt 0:06:11]} 21. bxc4 {[%emt 0:00:41]} cxd5 {[%emt 0:00:19]} 22. cxd5 {[%emt 0:00:19]} Rc8 {[%emt 0:00:54]} 23. Qd2 {[%emt 0:13:58]} Kh7 {[%emt 0:01:56]} 24. Reb1 {[%emt 0:01:30]} Rc7 {[%emt 0:01:48]} 25. Ra2 {[%emt 0:00:26]} Nc5 {[%emt 0:02:02]} 26. a5 {[%emt 0:06:10]} Bc8 {[%emt 0:02:52]} 27. Qe2 {[%emt 0:01:14]} Rf8 {[%emt 0:14:19]} ({Black should play} 27... h5 $14) 28. Nd2 $16 {[%emt 0:03:09]} h5 {[%emt 0:01:04]} 29. Nf3 {[%emt 0:08:50]} (29. Nb3 $16) 29... Bh6 $11 {[%emt 0:05:12]} 30. Rb4 {[%emt 0:11:00]} Ng8 {[%emt 0:04:51]} (30... Bxe3 $11 {is superior.} 31. Qxe3 Bd7) 31. Bxh6 {[%emt 0:06:04]} Nxh6 {[%emt 0:00:08]} 32. Qe3 {[%emt 0:01:04]} (32. Bd3 $5) 32... Kg7 {[%emt 0:02:16]} 33. Nd2 {[%emt 0:01:37]} Bd7 {[%emt 0:01:37]} 34. Bd1 {[%emt 0:03:15]} h4 {[%emt 0:00:45]} 35. Ngf1 {[%emt 0:00:11]} f5 {[%emt 0:00:41]} 36. Be2 {[%emt 0:01:01]} fxe4 {[%emt 0:01:45]} 37. Nxe4 {[%emt 0:00:07]} Nf5 {[%emt 0:00:10]} (37... Rf4 $11) 38. Qg5 $2 {[%emt 0:02:49]} (38. Qd2 $1 $14) 38... Nxe4 $17 {[%emt 0:00:51]} 39. Qxe7+ {[%emt 0:00:08]} Nxe7 {[%emt 0:00:01]} 40. Rxe4 {[%emt 0:00:09]} Nxd5 {[%emt 0:00:35]} 41. Rc4 {[%emt 0:11:39]} Bb5 $36 {[%emt 0:12:28][%mdl 2048] Keeping White busy. Black is more active.} 42. Rxc7+ {[%emt 0:00:21]} Nxc7 {[%emt 0:00:02]} 43. Ne3 {[%emt 0:03:26]} Rf4 $1 {[%emt 0:08:06]} 44. Rc2 {[%emt 0:04:42]} Bxe2 {[%emt 0:01:47]} 45. Rxc7+ {[%emt 0:00:09][%mdl 4096] Endgame KRB-KRN} Kh6 {[%emt 0:01:25]} 46. f3 {[%emt 0:10:33]} (46. Rd7 $17 {was called for.}) 46... Ra4 {[%emt 0:01:21]} 47. Rd7 {[%emt 0:00:47]} Rd4 {[%emt 0:02:23]} ({Not} 47... Rxa5 48. Rxd6 Kg5 49. Ng4 $15) 48. Ng4+ {[%emt 0:01:35]} Kg5 {[%emt 0:00:08]} 49. Rf7 {[%emt 0:00:48]} Bd3 {[%emt 0:00:50]} 50. Nf2 {[%emt 0:01:19]} Rd5 {[%emt 0:03:00] aiming for ...Bf5.} 51. Kh2 $2 {[%emt 0:00:45]} (51. Ra7) 51... Bf5 $19 {[%emt 0:00:53]} 52. Ra7 {[%emt 0:01:21]} (52. Rh7 $142 Rxa5 53. g3) 52... Rxa5 {[%emt 0:00:13]} 53. g3 {[%emt 0:00:06]} Ra2 {[%emt 0:00:18]} 54. Kg2 {[%emt 0:00:10]} e4 {[%emt 0:02:30]} 55. gxh4+ {[%emt 0:01:30]} Kf4 {[%emt 0:00:19] ( -> ...e3)} 56. fxe4 {[%emt 0:00:05]} Bxe4+ {[%emt 0:00:04]} 57. Kg1 {[%emt 0:00:12]} Bf5 {[%emt 0:02:48]} 58. h5 {[%emt 0:01:13]} gxh5 {[%emt 0:00:39]} 59. Rf7 {[%emt 0:00:04]} Ra3 {[%emt 0:00:35]} 60. h4 {[%emt 0:00:37]} d5 {[%emt 0:00:12] ...d4 is the strong threat.} 61. Kf1 {[%emt 0:00:20]} d4 {[%emt 0:00:20]} 62. Ke1 {[%emt 0:00:26]} d3 {[%emt 0:00:42]} 63. Nd1 {[%emt 0:00:15]} Ra1 {[%emt 0:00:17] Threatens to win with ...Ke4.} 64. Kd2 {[%emt 0:00:13]} Ra2+ {[%emt 0:00:01]} 65. Kc3 {[%emt 0:00:06]} Ke5 {[%emt 0:01:22]} (65... Rc2+ $142 66. Kd4 d2) 66. Ne3 {[%emt 0:00:23] [#]} Be6 $2 {[%emt 0:00:41]} (66... d2 $1 {[%cal Oe5e4] Strongly threatening ...Ke4!} 67. Rf8 {[#]} (67. Rxf5+ Ke4) 67... Ke4 $1 68. Re8+ Kf4) 67. Rf1 $2 {[%emt 0:00:51]} (67. Rf8) 67... Ke4 {[%emt 0:00:29]} 68. Rf6 {[%emt 0:00:05]} Ra3+ {[%emt 0:00:14]} 69. Kd2 {[%emt 0:00:02]} Ra2+ {[%emt 0:00:18]} (69... Bc8 $142 70. Nd1 Ra2+ 71. Kc1 Rc2+ 72. Kb1 Bg4) 70. Kc3 {[%emt 0:00:02]} Bh3 {[%emt 0:00:41]} 71. Nd1 {[%emt 0:00:32]} Rc2+ {[%emt 0:00:08]} 72. Kb3 {[%emt 0:00:02]} Bg4 {[%emt 0:00:29]} 73. Nc3+ {[%emt 0:01:09]} Ke5 {[%emt 0:00:34]} 74. Rxa6 {[%emt 0:00:38]} Be6+ {[%emt 0:00:21]} 75. Kb4 {[%emt 0:00:05]} d2 {[%emt 0:00:52]} 76. Nd1 {[%emt 0:03:30]} Rc1 {[%emt 0:00:31]} 77. Ra5+ {[%emt 0:00:15]} Bd5 {[%emt 0:00:36]} 78. Nf2 {[%emt 0:00:15]} d1=Q {[%emt 0:00:42]} 79. Nxd1 {[%emt 0:00:05]} Rxd1 {[%emt 0:00:03] Weighted Error Value: White=0.49/Black=0.12 (very precise)} 0-1

[Event "Teplice Open 2022"]
[Site "Teplice"]
[Date "2022.06.21"]
[Round "4.13"]
[White "Rubes, Jan"]
[Black "Laurusas, Tomas"]
[Result "1/2-1/2"]
[ECO "D35"]
[WhiteElo "2386"]
[BlackElo "2567"]
[Annotator "TA"]
[PlyCount "61"]
[EventDate "2022.06.18"]
[EventType "swiss"]
[EventCountry "CZE"]
[SourceTitle "playchess.com"]
[Source "ChessBase"]
[SourceQuality "1"]
[TimeControl "40/5400+30:1800+30"]

{[%evp 12,61,16,11,13,21,20,15,16,15,15,18,22,28,16,8,33,11,8,8,9,15,9,4,4,0,8,4,7,0,0,0,10,0,21,0,0,14,17,11,17,0,22,22,22,22,37,0,41,37,26,37]} 1. d4 {[%emt 0:00:07]} Nf6 {[%emt 0:00:40]} 2. c4 {[%emt 0:00:17]} e6 {[%emt 0:06:34]} 3. Nc3 {[%emt 0:00:41]} d5 {[%emt 0:00:39]} 4. cxd5 {[%emt 0:00:33]} exd5 {[%emt 0:00:05]} 5. Bg5 {[%emt 0:00:23]} c6 {[%emt 0:02:47]} 6. e3 {[%emt 0:00:08]} Bd6 {[%emt 0:04:17]} 7. Bd3 {[%emt 0:01:02]} h6 {[%emt 0:00:34] D35: Queen's Gambit Declined: Exchange Variation.} 8. Bh4 {[%emt 0:01:12]} O-O {[%emt 0:00:08]} 9. Nge2 {[%emt 0:04:39]} Re8 {[%emt 0:01:19] The position is equal.} 10. h3 {[%emt 0:00:56]} a5 {[%emt 0:00:39]} 11. O-O {[%emt 0:01:17]} Na6 {[%emt 0:00:13][%cal Bb8a6,Ba6c7,Bc7e6,Be6g5][%mdl 32]} 12. Rc1 {[%emt 0:02:45]} Nc7 {[%emt 0:00:21] [#]} 13. Bg3 $146 {[%emt 0:10:03]} ({Predecessor:} 13. Qc2 Ne6 14. Na4 Ng5 15. Nc5 Nfe4 16. Nxe4 dxe4 17. Bxg5 Qxg5 18. Bxe4 Be6 19. a3 {1-0 (31) Jugert,O (1739)-Jess,A (1842) Berlin 2019}) 13... Ne6 {[%emt 0:14:54]} 14. Na4 {[%emt 0:16:31]} Ng5 {[%emt 0:03:01]} 15. Bxd6 {[%emt 0:04:13]} Qxd6 {[%emt 0:00:47]} 16. Nb6 {[%emt 0:04:12]} Rb8 {[%emt 0:02:04]} 17. Nxc8 {[%emt 0:00:20]} Rbxc8 {[%emt 0:00:00]} 18. Ng3 {[%emt 0:07:38][%cal Be2g3,Bg3f1,Bf1d2,Bd2b3,Bb3c5][%mdl 32]} g6 {[%emt 0:04:36]} 19. Qd2 {[%emt 0:06:28]} Qd7 {[%emt 0:16:33][%cal Od7h3]} 20. Rc2 {[%emt 0:07:41]} h5 {[%emt 0:09:31]} 21. Rb1 {[%emt 0:00:41]} Ra8 {[%emt 0:01:22]} 22. a4 {[%emt 0:00:38]} h4 {[%emt 0:02:16]} 23. Nf1 {[%emt 0:00:07]} Nge4 {[%emt 0:03:05]} 24. Qe1 {[%emt 0:00:39]} Kg7 {[%emt 0:02:37]} 25. b4 {[%emt 0:04:22]} axb4 {[%emt 0:00:07]} 26. Rxb4 {[%emt 0:00:07]} (26. Qxb4 {seems wilder.} Qd6 27. Qb6 Rec8 28. Ra1) 26... Nd6 {[%emt 0:01:42]} 27. Nd2 {[%emt 0:00:39]} Qe7 {[%emt 0:05:42]} 28. Nb3 {[%emt 0:02:55]} Ra7 {[%emt 0:06:04]} 29. Nc5 {[%emt 0:04:37]} Rc8 {[%emt 0:00:56]} 30. Rcb2 {[%emt 0:00:38]} Rc7 {[%emt 0:00:06]} 31. Qb1 {[%emt 0:02:32] Weighted Error Value: White=0.05 (flawless) /Black=0.05 (flawless)} 1/2-1/2

[Event "Teplice Open 2022"]
[Site "Teplice"]
[Date "2022.06.21"]
[Round "4.14"]
[White "Stocek, Jiri"]
[Black "Shohat, Yotam"]
[Result "1-0"]
[ECO "E93"]
[WhiteElo "2533"]
[BlackElo "2331"]
[Annotator "TA"]
[PlyCount "59"]
[EventDate "2022.06.18"]
[EventType "swiss"]
[EventCountry "CZE"]
[SourceTitle "playchess.com"]
[Source "ChessBase"]
[SourceQuality "1"]
[TimeControl "40/5400+30:1800+30"]

{[%evp 17,59,43,47,27,20,27,24,20,38,20,72,55,70,104,74,96,95,88,168,125,124,114,197,117,208,180,197,188,207,204,210,195,258,279,290,287,383,374,378,345,1152,1140,1085,1068]} 1. d4 {[%emt 0:10:13]} Nf6 {[%emt 0:00:05]} 2. Nf3 {[%emt 0:00:12]} g6 {[%emt 0:00:11]} 3. c4 {[%emt 0:04:15]} Bg7 {[%emt 0:00:06]} 4. Nc3 {[%emt 0:00:03]} O-O {[%emt 0:00:07]} 5. e4 {[%emt 0:02:14]} d6 {[%emt 0:00:05]} 6. Be2 {[%emt 0:00:13]} e5 {[%emt 0:00:07]} 7. Be3 {[%emt 0:00:03]} Nbd7 {[%emt 0:03:46]} 8. d5 {[%emt 0:00:37]} Ng4 {[%emt 0:00:38]} 9. Bg5 {[%emt 0:00:06]} f6 {[%emt 0:00:06]} 10. Bd2 {[%emt 0:00:28] E93: King's Indian: Classical: Petrosian System with 7...Nbd7.} f5 {[%emt 0:05:08] 10...f5 scores better than 10...Nh6.} 11. exf5 {[%emt 0:00:20]} gxf5 {[%emt 0:00:11]} 12. Ng5 {[%emt 0:00:08] Hoping for Ne6. White has an edge.} Nc5 {[%emt 0:10:26] Prevents Ne6.} 13. h3 {[%emt 0:06:25] [#]} Nxf2 $146 {[%emt 0:19:55]} ({Predecessor:} 13... h6 14. hxg4 hxg5 15. Be3 e4 16. Qc2 fxg4 17. O-O-O Qe8 18. Bxc5 dxc5 19. Nxe4 Bf5 {1-0 (30) Ognean,M (2287)-Van Dael,S (2319) Pardubice 2019}) 14. Kxf2 $16 {[%emt 0:01:51]} e4 $1 {[%emt 0:01:26]} 15. h4 {[%emt 0:31:34]} h6 {[%emt 0:08:00]} 16. b4 {[%emt 0:02:28][%cal Bb2b4,Bb4c5][%mdl 32]} hxg5 {[%emt 0:18:11]} 17. bxc5 {[%emt 0:01:16]} gxh4 {[%emt 0:04:25] [#]} (17... Qe8 $16) 18. Rc1 $1 $18 {[%emt 0:04:11] And now Bf4 would win.} Be5 {[%emt 0:00:30] Against Bf4} 19. Kf1 {[%emt 0:03:26]} Bd7 {[%emt 0:06:07]} (19... Rf7 $16) 20. Bh6 {[%emt 0:03:05]} (20. Rb1 $18) 20... dxc5 {[%emt 0:12:06]} 21. Qd2 {[%emt 0:02:04] Threatens to win with d6.} (21. Bxf8 Kxf8 22. Qd2 Qf6 $16) 21... Qf6 {[%emt 0:01:10]} 22. Bg5 $36 {[%emt 0:06:27][%mdl 2048] White is in control.} (22. Bxf8 Rxf8 23. Bh5 Kg7 $16) 22... Qg6 {[%emt 0:02:04]} 23. Bf4 {[%emt 0:00:30]} (23. Bxh4 f4 $11) 23... Bf6 {[%emt 0:01:27]} 24. Nb5 {[%emt 0:02:38]} (24. Bxc7 f4 25. Nxe4 Qxe4 $11) 24... Bxb5 {[%emt 0:03:01]} (24... Rae8 $142 25. Rd1 (25. Nxc7 e3 $18) (25. Bxc7 Bg5 $17) (25. Nxa7 Rf7 $11) 25... Re7) 25. cxb5 {[%emt 0:00:05]} b6 {[%emt 0:00:49] [#]} 26. Rc3 $1 {[%emt 0:04:25][%mdl 512]} Kg7 {[%emt 0:01:53]} (26... Bxc3 $2 27. Qxc3 Rf7 28. Rxh4 $18) (26... Rae8 27. d6) 27. Rch3 {[%emt 0:00:52]} Rh8 {[%emt 0:00:02]} 28. g3 {[%emt 0:03:08]} ({Weaker is} 28. Bxc7 Rac8 $18) 28... hxg3 $2 {[%emt 0:00:43]} (28... Qf7 29. Bc4 Rh7 30. gxh4 Kh8) 29. Kg2 {[%emt 0:00:11]} Rxh3 {[%emt 0:00:25]} 30. Rxh3 {[%emt 0:00:04] Weighted Error Value: White=0.08 (flawless) /Black=0.28 (precise)} 1-0

[Event "Teplice Open 2022"]
[Site "Teplice"]
[Date "2022.06.21"]
[Round "4.15"]
[White "Mis, Mieszko"]
[Black "Ali Marandi, Cemil Can"]
[Result "0-1"]
[ECO "B21"]
[WhiteElo "2388"]
[BlackElo "2532"]
[Annotator "TA"]
[PlyCount "20"]
[EventDate "2022.06.18"]
[EventType "swiss"]
[EventCountry "CZE"]
[SourceTitle "playchess.com"]
[Source "ChessBase"]
[SourceQuality "1"]
[TimeControl "40/5400+30:1800+30"]

{[%evp 9,20,25,29,20,19,3,22,18,27,28,5,-47,-46]} 1. e4 {[%emt 0:00:03]} c5 {[%emt 0:10:26]} 2. f4 {[%emt 0:00:40]} Nc6 {[%emt 0:02:46]} 3. Nf3 {[%emt 0:00:08]} d6 {[%emt 0:01:28]} 4. Bb5 {[%emt 0:02:16]} Nf6 {[%emt 0:00:26]} 5. Bxc6+ {[%emt 0:02:19]} bxc6 {[%emt 0:00:19]} 6. Qe2 {[%emt 0:01:29] B21: Sicilian: 2 f4 and Morra Gambit.} g6 {[%emt 0:01:05]} 7. O-O {[%emt 0:02:35]} Bg7 {[%emt 0:00:06][%cal Oc5c4]} 8. d3 {[%emt 0:02:32]} O-O {[%emt 0:00:54] [#]} 9. h3 $146 {[%emt 0:00:12]} ({Predecessor:} 9. c4 e5 10. fxe5 dxe5 11. Be3 Qd6 12. Nc3 Rd8 13. Na4 Qxd3 14. Qxd3 Rxd3 15. Bxc5 Nxe4 16. Rad1 Rxd1 17. Rxd1 Bg4 18. b3 Nxc5 19. Nxc5 Bf5 {1-0 (19) Chipanga,C (2078)-Burger,H (2134) Port Elizabeth 2013}) 9... Rb8 {[%emt 0:07:25]} 10. c4 {[%emt 0:13:47]} ({White should play} 10. Nc3 $11) 10... Nh5 {[%emt 0:05:26] White got outplayed after the opening.  Weighted Error Value: White=0.20 (precise) /Black=0.07 (flawless)} 0-1